bitfinex-derivatives/quotes_SOLF0:USTF0_20250310
["timestamp","ask_amount","ask_price","bid_price","bid_amount"]
[1741596371240,0.05748451,126.42,126.35,20.30242248]
[1741596371436,7.911,126.39,126.36,7.9127]
[1741596371633,7.911,126.39,126.35,20.30242248]
[1741596372035,7.9116,126.39,126.35,28.21572248]
[1741596372335,0.05989656,126.38,126.31,20.30242248]
[1741596372536,3.09839656,126.38,126.29,20.30242248]
[1741596372736,3.0385,126.38,126.29,28.21942248]
[1741596373137,20.30242248,126.37,126.29,20.30242248]
[1741596373339,20.30242248,126.37,126.28,87.85188998]
[1741596373541,0.06061053,126.35,126.32,0.05727788]
[1741596373736,173.98,126.34,126.28,87.85188998]
[1741596374240,20.30242248,126.33,126.28,78.40548998]
[1741596374435,7.9173,126.29,126.28,78.40548998]
[1741596374938,0.05070722,126.3,126.27,0.06055443]
[1741596375139,0.05070722,126.3,126.22,20.30242248]
[1741596375331,20.30242248,126.31,126.22,20.30242248]
[1741596375533,3.0631,126.32,126.24,20.30242248]
[1741596376034,173.98,126.34,126.28,20.30242248]
[1741596376233,173.98,126.34,126.3,32.46495935]
[1741596376542,0.05666948,126.32,126.31,7.916]
[1741596376739,0.05666948,126.32,126.31,7.97657955]
[1741596377642,0.05666948,126.32,126.31,0.06057955]
[1741596378440,0.05666948,126.32,126.31,32.5255389]
[1741596378638,0.05666948,126.32,126.31,40.4415389]
[1741596379032,0.05666948,126.32,126.31,32.5255389]
[1741596379241,0.05666948,126.32,126.31,0.06057955]
[1741596380243,0.05666948,126.32,126.31,7.97657955]
[1741596380543,0.05666948,126.32,126.31,0.06057955]
[1741596380751,0.05666948,126.32,126.31,32.5255389]
[1741596380946,0.05666948,126.32,126.31,40.4415389]
[1741596381145,174.06,126.42,126.31,32.5255389]
[1741596381345,6.0392,126.41,126.33,32.46495935]
[1741596381544,6.0392,126.41,126.32,3.0688]
[1741596381744,3.0394,126.4,126.32,3.0688]
[1741596381947,7.9129,126.36,126.32,10.984]
[1741596382145,0.0563634,126.35,126.33,0.05491042]
[1741596382454,7.9701634,126.35,126.33,0.05491042]
[1741596382748,0.0563634,126.35,126.33,0.05491042]
[1741596383544,7.9699634,126.35,126.33,0.05491042]
[1741596383748,0.0563634,126.35,126.33,0.05491042]
[1741596385350,7.9141,126.34,126.33,0.05491042]
[1741596385537,0.0563634,126.35,126.26,35.57215935]
[1741596385742,6.161,126.34,126.24,32.46495935]
[1741596385944,7.916,126.31,126.26,7.9186]
[1741596386147,6.161,126.34,126.26,32.46495935]
[1741596386345,32.46495935,126.4,126.28,32.46495935]
[1741596386543,0.05247638,126.35,126.33,0.05820268]
[1741596386942,7.638e-05,126.35,126.34,40.37905935]
[1741596387547,7.638e-05,126.35,126.33,0.05820268]
[1741596388149,7.9141,126.34,126.33,0.05820268]
[1741596388354,7.638e-05,126.35,126.26,32.46495935]
[1741596388550,32.46495935,126.38,126.26,32.46495935]
[1741596388849,7.9159,126.32,126.28,7.9174]
[1741596389055,32.46495935,126.36,126.26,32.46495935]
[1741596389251,7.917,126.3,126.26,7.9188]
[1741596389455,0.05879746,126.29,126.27,0.05613354]
[1741596389657,35.54725935,126.34,126.23,192.0]
[1741596389856,0.05003315,126.29,126.27,0.05441631]
[1741596390056,3.0823,126.34,126.27,0.05441631]
[1741596390256,0.05253659,126.32,126.27,0.05441631]
[1741596390456,7.9167,126.3,126.27,0.05441631]
[1741596390853,7.9167,126.3,126.27,7.97291631]
[1741596391053,0.05253659,126.32,126.27,0.05441631]
[1741596391453,0.05253659,126.32,126.29,7.9172]
[1741596391656,0.05253659,126.32,126.27,0.05441631]
[1741596392858,0.05253659,126.32,126.27,3.07451631]
[1741596393056,0.05253659,126.32,126.27,0.05441631]
[1741596393461,7.9164,126.31,126.27,7.97281631]
[1741596393961,0.05253659,126.32,126.27,0.05441631]
[1741596394161,0.05253659,126.32,126.28,32.46495935]
[1741596394656,0.05253659,126.32,126.3,32.46495935]
[1741596394860,2.9909,126.4,126.3,32.46495935]
[1741596395157,2.9909,126.4,126.32,32.46495935]
[1741596395355,2.9909,126.4,126.33,3.0203]
[1741596395750,2.9909,126.4,126.3,32.46495935]
[1741596395953,0.05132383,126.38,126.35,0.05011948]
[1741596397362,7.9127,126.37,126.35,0.05011948]
[1741596397765,0.05132383,126.38,126.35,0.05011948]
[1741596398160,0.05132383,126.38,126.36,32.46495935]
[1741596398359,0.05132383,126.38,126.37,20.27009754]
[1741596400268,0.05132383,126.38,126.35,32.48751554]
[1741596400967,0.05132383,126.38,126.36,7.9123]
[1741596401169,0.05132383,126.38,126.35,32.48751554]
[1741596401671,0.05132383,126.38,126.36,7.9125]
[1741596402171,7.96312383,126.38,126.35,0.05011948]
[1741596402862,7.96312383,126.38,126.35,7.96361948]
[1741596403372,7.96312383,126.38,126.35,0.05011948]
[1741596403373,7.9123,126.37,126.35,0.05011948]
[1741596403568,0.05132383,126.38,126.35,0.05011948]
[1741596404072,0.05132383,126.38,126.36,7.9128]
[1741596404273,0.05132383,126.38,126.35,0.05011948]
[1741596404466,0.05132383,126.38,126.36,7.9124]
[1741596404666,0.05132383,126.38,126.35,0.05011948]
[1741596405370,0.05132383,126.38,126.35,7.96321948]
[1741596405671,0.05132383,126.38,126.35,0.05011948]
[1741596407176,0.05132383,126.38,126.36,7.9129]
[1741596407378,0.05132383,126.38,126.35,0.05011948]
[1741596407572,0.05132383,126.38,126.37,7.9123]
[1741596408278,174.06,126.42,126.37,32.43739606]
[1741596408575,174.06,126.42,126.39,32.43739606]
[1741596408968,3.041,126.45,126.36,5.8028]
[1741596409171,3.041,126.45,126.38,32.43739606]
[1741596409475,0.05679387,126.43,126.4,32.49245094]
[1741596409681,0.05679387,126.43,126.4,0.05505488]
[1741596409978,7.96579387,126.43,126.4,0.05069702]
[1741596410673,0.05679387,126.43,126.41,7.9097]
[1741596411179,0.05679387,126.43,126.4,7.96069702]
[1741596411583,0.05679387,126.43,126.4,0.05069702]
[1741596411784,7.96569387,126.43,126.4,7.96109702]
[1741596411985,0.05679387,126.43,126.4,0.05069702]
[1741596412182,174.04,126.5,126.42,32.43739606]
[1741596413279,174.04,126.5,126.45,0.05065009]
[1741596413584,0.05521488,126.47,126.45,0.05065009]
[1741596413780,0.05521488,126.47,126.36,2.8622]
[1741596413981,32.43739606,126.45,126.33,3.0645]
[1741596414181,7.9102,126.41,126.34,9.35488326]
[1741596414486,3.0056,126.44,126.33,38.45039606]
[1741596414785,2.8863,126.43,126.33,38.45039606]
[1741596414993,0.0536822,126.4,126.37,0.0586439]
[1741596415382,7.9116,126.38,126.37,0.0586439]
[1741596415584,0.0536822,126.4,126.37,0.0586439]
[1741596416283,7.9114,126.39,126.37,0.0586439]
[1741596416590,0.0536822,126.4,126.37,0.0586439]
[1741596417191,7.9115,126.39,126.37,0.0586439]
[1741596417690,0.0536822,126.4,126.37,0.0586439]
[1741596418285,7.9116,126.38,126.37,0.0586439]
[1741596418590,0.0536822,126.4,126.37,0.0586439]
[1741596418788,7.9645822,126.4,126.37,0.0586439]
[1741596419792,7.911,126.39,126.37,0.0586439]
[1741596419979,0.0536822,126.4,126.37,0.0586439]
[1741596421382,0.0536822,126.4,126.39,32.43739606]
[1741596421580,2.9844,126.45,126.39,32.43739606]
[1741596421891,10.8919,126.45,126.39,32.43739606]
[1741596422195,173.98,126.46,126.41,32.43739606]
[1741596422399,173.98,126.46,126.42,7.9088]
[1741596422689,173.98,126.46,126.43,32.49833271]
[1741596422894,0.05851804,126.45,126.43,40.40643271]
[1741596423592,0.05851804,126.45,126.43,32.49833271]
[1741596424002,0.05851804,126.45,126.43,0.06093665]
[1741596424197,7.9079,126.44,126.43,0.06093665]
[1741596424398,0.05851804,126.45,126.43,0.06093665]
[1741596425992,0.05851804,126.45,126.43,32.49833271]
[1741596426191,0.05851804,126.45,126.43,0.06093665]
[1741596428495,0.05851804,126.45,126.44,7.9079]
[1741596429597,0.05851804,126.45,126.44,40.34529606]
[1741596430104,8.909,126.53,126.44,32.43739606]
[1741596430800,7.9038,126.51,126.47,7.9059]
[1741596430989,8.909,126.53,126.44,32.43739606]
[1741596431191,8.909,126.53,126.46,32.43739606]
[1741596431397,0.05706152,126.5,126.47,0.05125595]
[1741596432412,7.9054,126.48,126.47,0.05125595]
[1741596432697,0.05706152,126.5,126.47,0.05125595]
[1741596432901,7.96156152,126.5,126.47,0.05125595]
[1741596433101,0.05706152,126.5,126.41,32.43739606]
[1741596433302,8.909,126.53,126.41,32.43739606]
[1741596434106,8.909,126.53,126.42,7.9091]
[1741596434305,0.05542188,126.48,126.46,0.05437252]
[1741596434500,7.9064,126.47,126.46,0.05437252]
[1741596435093,0.05707608,126.48,126.46,0.05437252]
[1741596435506,0.05707608,126.48,126.46,7.96097252]
[1741596435705,0.05707608,126.48,126.46,0.05437252]
[1741596436400,0.05707608,126.48,126.39,35.51769606]
[1741596436605,32.43739606,126.51,126.39,35.51769606]
[1741596436801,7.9074,126.45,126.39,35.51769606]
[1741596437001,8.909,126.53,126.39,35.51769606]
[1741596437197,32.43739606,126.51,126.4,7.9101]
[1741596437507,8.909,126.53,126.42,32.43739606]
[1741596437707,0.05038884,126.47,126.44,0.05866582]
[1741596438007,7.907,126.46,126.42,40.34629606]
[1741596438195,7.907,126.46,126.44,0.05652838]
[1741596438395,7.9073,126.45,126.44,0.05652838]
[1741596438806,0.05774666,126.47,126.44,0.05652838]
[1741596440609,7.96404666,126.47,126.44,0.05652838]
[1741596440806,0.05774666,126.47,126.44,0.05652838]
[1741596441309,7.9069,126.46,126.44,0.05652838]
[1741596441504,0.05774666,126.47,126.44,0.05652838]
[1741596441704,7.9069,126.46,126.44,0.05652838]
[1741596442108,0.05774666,126.47,126.44,0.05652838]
[1741596442906,7.96414666,126.47,126.44,0.05652838]
[1741596443107,0.05774666,126.47,126.44,0.05652838]
[1741596443612,0.05774666,126.47,126.46,7.9066]
[1741596446605,7.9038,126.51,126.45,32.43739606]
[1741596446606,16.8117,126.53,126.5,7.904]
[1741596446805,5.8458,126.53,126.46,3.0693]
[1741596447815,0.06052275,126.51,126.48,0.06090778]
[1741596448517,7.9048,126.49,126.48,0.06090778]
[1741596448707,0.06052275,126.51,126.48,0.06090778]
[1741596449309,0.06052275,126.51,126.42,224.43739606]
[1741596449514,5.8458,126.53,126.42,224.43739606]
[1741596449515,38.28319606,126.53,126.42,32.43739606]
[1741596450019,7.9076,126.45,126.42,32.43739606]
[1741596450518,7.96307063,126.45,126.42,32.49757476]
[1741596451020,0.05547063,126.45,126.42,32.49757476]
[1741596451614,7.96307063,126.45,126.42,32.49757476]
[1741596452517,0.05547063,126.45,126.42,40.40637476]
[1741596453417,0.05547063,126.45,126.44,7.9079]
[1741596453623,0.05547063,126.45,126.42,32.49757476]
[1741596454825,5.8458,126.53,126.42,32.49757476]
[1741596455022,5.8458,126.53,126.45,32.43739606]
[1741596455225,7.9038,126.51,126.47,7.906]
[1741596455524,5.8458,126.53,126.45,32.43739606]
[1741596455722,7.9032,126.52,126.45,32.43739606]
[1741596455919,0.05451246,126.5,126.48,0.0572882]
[1741596456318,7.95871246,126.5,126.48,0.0572882]
[1741596456518,0.05451246,126.5,126.48,0.0572882]
[1741596457820,7.9048,126.49,126.48,0.0572882]
[1741596459519,0.05451246,126.5,126.48,0.0572882]
[1741596461426,7.9048,126.49,126.48,0.0572882]
[1741596461727,0.05451246,126.5,126.48,0.0572882]
[1741596462329,0.05451246,126.5,126.42,32.43739606]
[1741596462530,38.28319606,126.53,126.42,32.43739606]
[1741596462929,7.9051,126.49,126.45,7.9067]
[1741596463336,38.28319606,126.53,126.45,7.9067]
[1741596463627,38.28319606,126.53,126.46,0.05949495]
[1741596463628,7.95753351,126.48,126.46,0.05949495]
[1741596463829,38.28319606,126.53,126.46,7.96609495]
[1741596464029,0.05614538,126.48,126.46,0.05949495]
[1741596464228,7.9036,126.51,126.46,0.05949495]
[1741596464527,0.05955359,126.48,126.47,7.9056]
[1741596465437,0.05955359,126.48,126.47,40.34299606]
[1741596466331,173.98,126.54,126.49,7.9044]
[1741596466534,173.98,126.54,126.47,35.34919606]
[1741596467235,173.98,126.54,126.47,43.25489606]
[1741596467437,0.05109718,126.52,126.49,0.05651194]
[1741596467639,7.9039,126.51,126.49,0.05651194]
[1741596467938,0.05109718,126.52,126.49,0.05651194]
[1741596468236,7.9035,126.51,126.49,0.05651194]
[1741596468437,0.05109718,126.52,126.49,0.05651194]
[1741596469237,7.9039,126.51,126.49,0.05651194]
[1741596469436,0.05109718,126.52,126.49,0.05651194]
[1741596469638,7.95439718,126.52,126.49,0.05651194]
[1741596470139,0.05109718,126.52,126.49,0.05651194]
[1741596471438,7.9035,126.51,126.49,0.05651194]
[1741596471632,0.05109718,126.52,126.49,0.05651194]
[1741596471832,7.95439718,126.52,126.49,0.05651194]
[1741596472430,7.9041,126.5,126.49,0.05651194]
[1741596474839,0.05109718,126.52,126.49,0.05651194]
[1741596475233,0.05109718,126.52,126.49,7.96091194]
[1741596475440,0.05109718,126.52,126.49,0.05651194]
[1741596476042,7.9041,126.5,126.49,0.05651194]
[1741596480148,7.9068,126.46,126.44,28.14838375]
[1741596480347,7.9068,126.46,126.44,20.24078375]
[1741596480741,2.9376,126.51,126.44,20.24078375]
[1741596480742,7.9063,126.47,126.44,28.14838375]
[1741596480945,2.9376,126.51,126.44,20.24078375]
[1741596481141,0.05185876,126.47,126.44,20.29769283]
[1741596481339,0.05185876,126.47,126.46,28.14738375]
[1741596481750,173.98,126.54,126.46,20.24078375]
[1741596481952,7.9048,126.49,126.46,28.14708375]
[1741596482149,7.9048,126.49,126.46,20.24078375]
[1741596482450,7.9065,126.47,126.44,28.14848375]
[1741596482651,12.94,126.48,126.44,20.24078375]
[1741596482854,0.05834787,126.47,126.46,20.24078375]
[1741596485950,0.05834787,126.47,126.46,28.14738375]
[1741596486253,0.05834787,126.47,126.46,20.24078375]
[1741596486454,0.05834787,126.47,126.44,20.29206104]
[1741596487153,0.05834787,126.47,126.45,7.9068]
[1741596487349,0.05834787,126.47,126.44,20.29206104]
[1741596487747,0.05834787,126.47,126.46,7.9066]
[1741596488048,0.05834787,126.47,126.44,20.29206104]
[1741596488243,0.05834787,126.47,126.46,28.14738375]
[1741596489154,176.9176,126.54,126.5,7.9038]
[1741596489355,7.9026,126.53,126.5,7.9038]
[1741596489555,176.9176,126.54,126.48,20.24078375]
[1741596489751,176.9176,126.54,126.51,7.9031]
[1741596489957,184.8193,126.54,126.51,7.9031]
[1741596490155,176.9176,126.54,126.51,7.9031]
[1741596490355,0.0541217,126.54,126.51,7.95997839]
[1741596490556,0.0541217,126.54,126.51,0.05687839]
[1741596491349,0.0541217,126.54,126.52,20.24078375]
[1741596493263,0.0541217,126.54,126.51,0.05687839]
[1741596494454,20.29490545,126.54,126.46,212.24078375]
[1741596494654,5.8525,126.53,126.46,20.24078375]
[1741596495052,5.8525,126.53,126.48,20.24078375]
[1741596495254,2.8474,126.53,126.48,20.24078375]
[1741596495457,0.05201995,126.52,126.5,20.24078375]
[1741596495763,20.24078375,126.56,126.48,20.24078375]
[1741596495963,0.05740177,126.52,126.5,20.29760493]
[1741596496157,3.0179,126.57,126.5,20.29760493]
[1741596496356,7.9610258,126.52,126.5,0.05682118]
[1741596496551,7.903,126.52,126.5,0.05682118]
[1741596496856,0.05253089,126.52,126.5,0.05682118]
[1741596498464,7.9035,126.51,126.5,0.05682118]
[1741596499457,7.9035,126.51,126.42,231.70295711]
[1741596499458,0.05253089,126.52,126.42,231.70295711]
[1741596499662,7.9052,126.49,126.44,32.36703585]
[1741596499863,7.9052,126.49,126.46,7.9063]
[1741596500065,35.37323585,126.56,126.44,32.36703585]
[1741596500265,35.37323585,126.56,126.44,40.27473585]
[1741596500463,35.37323585,126.56,126.44,32.36703585]
[1741596500666,0.05013697,126.51,126.49,0.0511469]
[1741596500858,7.9041,126.5,126.49,0.0511469]
[1741596504369,7.96151467,126.51,126.49,0.0511469]
[1741596504673,0.05781467,126.51,126.49,0.0511469]
[1741596504862,0.05781467,126.51,126.49,32.41818275]
[1741596506067,0.05781467,126.51,126.49,40.32248275]
[1741596506563,0.05781467,126.51,126.5,7.9041]
[1741596506864,0.05781467,126.51,126.49,32.41818275]
[1741596507270,0.05781467,126.51,126.49,40.32268275]
[1741596507868,0.05781467,126.51,126.49,32.41818275]
[1741596508265,0.05781467,126.51,126.49,0.0511469]
[1741596508463,7.96161467,126.51,126.49,0.0511469]
[1741596508663,0.05781467,126.51,126.49,0.0511469]
[1741596509070,0.05781467,126.51,126.5,7.9041]
[1741596509469,0.05781467,126.51,126.49,7.9556469]
[1741596510071,7.9041,126.5,126.49,0.0511469]
[1741596514379,0.05781467,126.51,126.49,0.0511469]
[1741596515679,0.05781467,126.51,126.49,7.9558469]
[1741596515882,0.05781467,126.51,126.49,0.0511469]
[1741596516279,7.96181467,126.51,126.49,0.0511469]
[1741596517382,7.9041,126.5,126.49,0.0511469]
[1741596518281,7.906,126.48,126.44,20.24973627]
[1741596518485,20.24973627,126.53,126.45,7.9071]
[1741596518777,7.9057,126.48,126.45,7.9071]
[1741596519182,6.0597,126.52,126.45,7.9071]
[1741596519377,7.9061,126.47,126.45,7.96737442]
[1741596519579,7.9061,126.47,126.45,0.06027442]
[1741596520085,0.053501,126.48,126.45,0.06027442]
[1741596521777,7.9066,126.46,126.45,0.06027442]
[1741596522289,0.053501,126.48,126.45,0.06027442]
[1741596522585,7.9063,126.47,126.45,0.06027442]
[1741596522781,0.053501,126.48,126.45,0.06027442]
[1741596523685,7.9066,126.46,126.45,0.06027442]
[1741596524780,2.9984,126.47,126.38,23.11043627]
[1741596525082,3.0101,126.46,126.38,23.11043627]
[1741596525292,7.9102,126.41,126.38,31.02183627]
[1741596525982,0.05709174,126.41,126.38,23.16974756]
[1741596526576,0.05709174,126.41,126.4,20.24973627]
[1741596527277,0.05709174,126.41,126.4,28.16013627]
[1741596530179,85.39163834,126.59,126.44,20.24973627]
[1741596530180,20.24973627,126.53,126.44,20.24973627]
[1741596530386,2.8854,126.5,126.44,20.24973627]
[1741596530780,7.9064,126.47,126.44,20.24973627]
[1741596530980,2.8854,126.5,126.44,20.24973627]
[1741596531182,0.05318144,126.47,126.44,20.30584114]
[1741596531781,7.907,126.46,126.44,20.30584114]
[1741596532176,0.05318144,126.47,126.44,20.30584114]
[1741596532385,7.9067,126.46,126.44,20.30584114]
[1741596533378,7.95938144,126.47,126.44,20.30584114]
[1741596533580,0.05318144,126.47,126.44,20.30584114]
[1741596533978,7.95948144,126.47,126.44,28.21324114]
[1741596534192,0.05318144,126.47,126.44,20.30584114]
[1741596534690,0.05318144,126.47,126.46,7.9066]
[1741596535479,0.05318144,126.47,126.45,7.9069]
[1741596535684,0.05318144,126.47,126.44,20.30584114]
[1741596535890,0.05318144,126.47,126.45,7.9072]
[1741596536089,0.05318144,126.47,126.44,20.30584114]
[1741596536892,7.95938144,126.47,126.44,28.21354114]
[1741596537285,0.05318144,126.47,126.44,0.05610487]
[1741596537490,7.9066,126.46,126.44,0.05610487]
[1741596538396,7.9073,126.45,126.44,0.05610487]
[1741596538591,0.05318144,126.47,126.44,0.05610487]
[1741596540290,0.05318144,126.47,126.44,7.96370487]
[1741596540492,7.95928144,126.47,126.44,0.05610487]
[1741596540690,0.05318144,126.47,126.44,0.05610487]
[1741596540896,0.05318144,126.47,126.46,7.9066]
[1741596541208,173.86,126.51,126.47,20.24973627]
[1741596541399,173.86,126.51,126.45,31.26583627]
[1741596541899,173.86,126.51,126.45,3.1091]
[1741596542201,0.05909374,126.49,126.43,20.24973627]
[1741596542496,0.05909374,126.49,126.47,0.05736161]
[1741596542898,7.9054,126.48,126.47,0.05736161]
[1741596543791,7.96409374,126.49,126.47,0.05736161]
[1741596543996,20.24973627,126.59,126.5,7.904]
[1741596544198,5.8978,126.57,126.5,28.15373627]
[1741596544396,5.8978,126.57,126.5,20.24973627]
[1741596544693,5.8978,126.57,126.52,20.24973627]
[1741596544898,2.9194,126.57,126.52,20.24973627]
[1741596545290,173.96081145,126.55,126.52,0.05778516]
[1741596546097,173.96081145,126.55,126.52,20.30752143]
[1741596546701,173.96081145,126.55,126.52,0.05778516]
[1741596547097,181.86231145,126.55,126.52,0.05778516]
[1741596547300,173.96081145,126.55,126.52,0.05778516]
[1741596547599,0.06081145,126.55,126.52,0.05778516]
[1741596549905,7.96211145,126.55,126.52,0.05778516]
[1741596550099,0.06081145,126.55,126.54,7.9016]
[1741596551699,6.2371,126.62,126.53,20.24973627]
[1741596551899,20.24973627,126.69,126.6,20.24973627]
[1741596552101,9.1556,126.68,126.6,20.24973627]
[1741596552303,7.896,126.64,126.6,28.14753627]
[1741596552701,9.1556,126.68,126.6,20.24973627]
[1741596552898,7.95189614,126.63,126.61,0.05381062]
[1741596553096,7.8965,126.63,126.61,0.05381062]
[1741596553298,0.04991255,126.63,126.61,0.05381062]
[1741596553497,0.04991255,126.63,126.56,20.24973627]
[1741596553899,20.29964882,126.63,126.54,23.09833627]
[1741596554203,20.24973627,126.65,126.52,20.24973627]
[1741596554204,20.24973627,126.61,126.52,20.24973627]
[1741596554594,7.9001,126.57,126.52,28.15253627]
[1741596554799,0.05719284,126.58,126.55,0.05848133]
[1741596555196,7.9004,126.56,126.55,0.05848133]
[1741596555398,7.9004,126.56,126.55,8.133e-05]
[1741596555797,11.8604,126.56,126.55,8.133e-05]
[1741596555992,14.8971,126.56,126.55,8.133e-05]
[1741596557394,10.9371,126.56,126.55,8.133e-05]
[1741596558193,7.9004,126.56,126.55,8.133e-05]
[1741596559703,14.8185,126.56,126.55,8.133e-05]
[1741596560907,10.8585,126.56,126.55,8.133e-05]
[1741596561401,13.8501,126.56,126.55,8.133e-05]
[1741596562808,17.8101,126.56,126.55,8.133e-05]
[1741596563900,13.8501,126.56,126.55,8.133e-05]
[1741596566611,17.8101,126.56,126.55,8.133e-05]
[1741596570319,50.17075128,126.56,126.55,8.133e-05]
[1741596572215,46.21075128,126.56,126.55,8.133e-05]
[1741596572517,13.8501,126.56,126.55,8.133e-05]
[1741596576918,10.892,126.56,126.55,8.133e-05]
[1741596577118,7.9004,126.56,126.55,8.133e-05]
[1741596587619,28.12792773,126.56,126.55,8.133e-05]
[1741596588526,201.96792773,126.56,126.55,8.133e-05]
[1741596589528,181.7404,126.56,126.55,8.133e-05]
[1741596592321,7.9055,126.48,126.45,28.72412773]
[1741596592925,7.9055,126.48,126.45,36.63132773]
[1741596593125,20.22752773,126.53,126.45,8.4966]
[1741596593433,0.05853078,126.5,126.48,0.05691225]
[1741596593630,7.9048,126.49,126.48,0.05691225]
[1741596594329,0.05853078,126.5,126.45,8.4966]
[1741596595029,7.9063,126.47,126.45,8.4966]
[1741596595427,20.22752773,126.51,126.45,8.4966]
[1741596595636,7.96365884,126.47,126.45,2.89219462]
[1741596596023,0.05725884,126.47,126.45,2.89219462]
[1741596596828,0.05725884,126.47,126.45,10.79939462]
[1741596598035,0.05725884,126.47,126.45,0.05189462]
[1741596599034,0.05725884,126.47,126.45,7.95879462]
[1741596599434,0.05725884,126.47,126.45,0.05189462]
[1741596599638,7.9066,126.46,126.45,0.05189462]
[1741596600332,0.05725884,126.47,126.45,0.05189462]
[1741596601737,0.05725884,126.47,126.45,7.95879462]
[1741596602239,7.905,126.49,126.46,7.9066]
[1741596602435,3.0045,126.54,126.44,25.85012773]
[1741596602631,20.22752773,126.53,126.44,25.85012773]
[1741596603436,0.05766751,126.5,126.47,0.05177613]
[1741596603740,7.9056,126.48,126.47,0.05177613]
[1741596604529,0.05766751,126.5,126.47,0.05177613]
[1741596605441,0.05766751,126.5,126.48,20.22752773]
[1741596605636,7.902,126.54,126.51,7.9035]
[1741596605841,23.07522773,126.59,126.5,20.22752773]
[1741596606042,20.22752773,126.57,126.49,5.7797]
[1741596606244,7.9039,126.51,126.49,5.7797]
[1741596606742,0.06073075,126.51,126.49,5.83357523]
[1741596607336,23.07522773,126.59,126.5,20.22752773]
[1741596607541,23.07522773,126.59,126.5,28.13152773]
[1741596607542,7.902,126.54,126.5,28.13152773]
[1741596607839,23.07522773,126.59,126.5,20.22752773]
[1741596608035,7.9021,126.54,126.5,28.13132773]
[1741596608235,23.07522773,126.59,126.5,20.22752773]
[1741596608440,0.05749055,126.53,126.51,0.06012365]
[1741596608636,181.7407,126.56,126.52,28.13042773]
[1741596608844,173.84,126.56,126.52,20.22752773]
[1741596609237,7.9011,126.55,126.52,20.22752773]
[1741596609745,7.96006216,126.55,126.52,20.22752773]
[1741596609946,0.05896216,126.55,126.52,20.22752773]
[1741596610141,7.9019,126.54,126.52,20.22752773]
[1741596610537,7.96026216,126.55,126.52,20.22752773]
[1741596612651,7.96026216,126.55,126.52,28.13022773]
[1741596613349,0.05896216,126.55,126.52,20.22752773]
[1741596613549,7.9017,126.54,126.52,20.22752773]
[1741596613752,0.05896216,126.55,126.51,0.06012365]
[1741596614749,7.9027,126.53,126.51,0.06012365]
[1741596615456,7.9019,126.54,126.51,7.96362365]
[1741596616151,0.05896216,126.55,126.51,7.96362365]
[1741596616350,7.9023,126.53,126.51,0.06012365]
[1741596616851,7.9026,126.53,126.51,0.06012365]
[1741596617751,7.9026,126.53,126.51,7.96362365]
[1741596618250,0.05896216,126.55,126.51,7.96362365]
[1741596618451,7.902,126.54,126.51,7.96362365]
[1741596619049,7.9023,126.53,126.51,0.06012365]
[1741596619245,0.05896216,126.55,126.51,0.06012365]
[1741596619452,7.9027,126.53,126.51,0.06012365]
[1741596619957,0.05896216,126.55,126.51,0.06012365]
[1741596620159,0.05896216,126.55,126.52,20.22752773]
[1741596620352,0.05896216,126.55,126.53,12.94428714]
[1741596620857,7.96056216,126.55,126.53,12.94428714]
[1741596621256,7.9016,126.54,126.53,12.94428714]
[1741596622248,0.05896216,126.55,126.51,7.96332365]
[1741596622445,0.05896216,126.55,126.52,7.9029]
[1741596623056,0.05896216,126.55,126.51,7.96332365]
[1741596623357,0.05896216,126.55,126.51,0.06012365]
[1741596623551,7.9017,126.54,126.51,0.06012365]
[1741596623847,0.05896216,126.55,126.52,7.9027]
[1741596624050,0.05896216,126.55,126.51,0.06012365]
[1741596624255,0.05896216,126.55,126.52,7.9024]
[1741596624454,0.05896216,126.55,126.51,0.06012365]
[1741596624661,0.05896216,126.55,126.52,20.22951898]
[1741596624852,234.72782533,126.65,126.54,40.45903796]
[1741596625158,7.8963,126.63,126.57,20.22951898]
[1741596625356,216.67261829,126.65,126.57,20.22951898]
[1741596625656,7.8968,126.62,126.58,7.8987]
[1741596625859,216.67261829,126.65,126.57,20.22951898]
[1741596626059,0.05798343,126.61,126.59,0.05633968]
[1741596628755,7.8979,126.6,126.59,0.05633968]
[1741596628956,0.05798343,126.61,126.59,0.05633968]
[1741596629463,7.95578343,126.61,126.59,0.05633968]
[1741596629662,0.05798343,126.61,126.59,0.05633968]
[1741596631464,7.8979,126.6,126.59,0.05633968]
[1741596639666,7.95558343,126.61,126.59,0.05633968]
[1741596639862,7.95558343,126.61,126.59,20.28585866]
[1741596640064,0.05798343,126.61,126.59,20.28585866]
[1741596641968,7.95528343,126.61,126.59,20.28585866]
[1741596642174,0.05798343,126.61,126.59,20.28585866]
[1741596642766,0.05798343,126.61,126.6,7.8979]